Workbook

Sheet Pasiūlymas
A1: Perkantysis subjektas, kuriam teikiamas pasiūlymas: | C1: AB „Lietuvos geležinkeliai“
B3: PASIŪLYMAS
B4: KONSOLIDUOTAS: Potencialiai pavojingų įrenginių patikros pirkimas
A6: Data: | B6: 2019-12-30
A7: Nr.: | B7: 19/12/30/01
A8: Vieta: | B8: Vilnius
A10: Tiekėjo arba tiekėjų grupės narių pavadinimas (-ai) | C10: Lietuvos ir Vokietijos UAB „TUVLITA”
A11: Tiekėjo arba tiekėjo grupės narių juridinio asmens kodas (-ai) (tuo atveju, jei pasiūlymą teikia fizinis asmuo - verslo pažymėjimo Nr. ar pan.) | C11: 110584095
A12: Tiekėjo arba tiekėjo grupės narių PVM mokėtojo kodas (-ai) | C12: LT105840917
A13: Tiekėjų grupės narys, atstovaujantis arba vadovaujantis tiekėjų grupei (pildoma, jei pasiūlymą teikia tiekėjų grupė)
A14: Tiekėjo valdymo ar priežiūros organo narys (-iai) ar kitas asmuo (-ys), turintis (-ys) teisę atstovauti tiekėjui ar jį kontroliuoti, jo vardu priimti sprendimą, sudaryti sandorį | C14: Raimedas Burba
A15: Tiekėjo arba atstovaujančio tiekėjų grupės nario adresas, telefono numeris, fakso numeris, el. paštas | C15: Lentvario g. 7A, Vilnius, LT-02241; +370 5 266 11 24; sauga@tuvlita.lt
A16: Tiekėjo arba atstovaujančio tiekėjų grupės nario banko pavadinimas, banko kodas, sąskaitos Nr. | C16: LT08 7044 0600 0109 5181
A17: Asmens, įgalioto pasirašyti sutartį, vardas, pavardė, pareigos | C17: Technikos kontrolės tarnybos direktorius Raimedas Burba
A18: Asmens, atsakingo už pirkimą, vardas, pavardė, telefono numeris, el. paštas | C18: Technikos kontrolės tarnybos direktorius Raimedas Burba
A24: Siūlomas pirkimo objektas visiškai atitinka pirkimo sąlygose nustatytus reikalavimus ir jo kaina yra:
A28: Nr. | B28: Pavadinimas | C28: Kiekis | D28: Mato vienetas | E28: Kaina be PVM, Eur | F28: Suma be PVM, Eur
A29: 1. | B29: 1 grupė - garo ir vandens šildymo katilai ir jų įranga
A30: 1.1. | B30: 1 grupė - garo ir vandens šildymo katilai ir jų įranga | C30: 1 | D30: kompl. | E30: 3219 | F30: =IF(ISBLANK(E30),"", PRODUCT(C30,E30)) -> 3219
E31: Suma be PVM | F31: =IF(F30="","",SUM(F30:F30)) -> 3219 | G31: =IF(F30="","Neužpildytos visos objektų kainos","") -> 
E32: PVM suma | F32: 675.99
E33: Suma su PVM | F33: =IF(ISBLANK(F32), "", SUM(F31:F32)) -> 3894.99
A35: 2. | B35: 2 grupė - slėginiai indai ir jų įranga
A36: 2.1. | B36: 2 grupė - slėginiai indai ir jų įranga | C36: 1 | D36: kompl. | E36: 2410 | F36: =IF(ISBLANK(E36),"", PRODUCT(C36,E36)) -> 2410
E37: Suma be PVM | F37: =IF(F36="","",SUM(F36:F36)) -> 2410 | G37: =IF(F36="","Neužpildytos visos objektų kainos","") -> 
E38: PVM suma | F38: 506.1
E39: Suma su PVM | F39: =IF(ISBLANK(F38), "", SUM(F37:F38)) -> 2916.1
A41: 3. | B41: 4 grupė - pavojingų medžiagų talpyklos ir jų įranga
A42: 3.1. | B42: 4 grupė - pavojingų medžiagų talpyklos ir jų įranga | C42: 1 | D42: kompl. | E42: 6147 | F42: =IF(ISBLANK(E42),"", PRODUCT(C42,E42)) -> 6147
E43: Suma be PVM | F43: =IF(F42="","",SUM(F42:F42)) -> 6147 | G43: =IF(F42="","Neužpildytos visos objektų kainos","") -> 
E44: PVM suma | F44: 1290.87
E45: Suma su PVM | F45: =IF(ISBLANK(F44), "", SUM(F43:F44)) -> 7437.87
A47: 4. | B47: 5 grupė -liftai ir jų įranga
A48: 4.1. | B48: 5 grupė -liftai ir jų įranga | C48: 1 | D48: kompl. | E48: 710 | F48: =IF(ISBLANK(E48),"", PRODUCT(C48,E48)) -> 710
E49: Suma be PVM | F49: =IF(F48="","",SUM(F48:F48)) -> 710 | G49: =IF(F48="","Neužpildytos visos objektų kainos","") -> 
E50: PVM suma | F50: 149.1
E51: Suma su PVM | F51: =IF(ISBLANK(F50), "", SUM(F49:F50)) -> 859.1
A53: 5. | B53: 8 grupė -kėlimo įrenginiai ir jų įranga
A54: 5.1. | B54: 8 grupė -kėlimo įrenginiai ir jų įranga | C54: 1 | D54: kompl. | E54: 10025 | F54: =IF(ISBLANK(E54),"", PRODUCT(C54,E54)) -> 10025
E55: Suma be PVM | F55: =IF(F54="","",SUM(F54:F54)) -> 10025 | G55: =IF(F54="","Neužpildytos visos objektų kainos","") -> 
E56: PVM suma | F56: 2105.25
E57: Suma su PVM | F57: =IF(ISBLANK(F56), "", SUM(F55:F56)) -> 12130.25

Sheet 1 p.o.d.
A1: Potencialiai pavojingų įrenginių patikros paslaugų pirkimo
A2: techninės specifikacijos 1 priedas
A4: I pirkimo objekto dalis.
A5: 1 grupė - garo ir vandens šildymo katilalai ir jų įranga
A7: Eil. Nr. | B7: Pavadinimas | C7: Įrenginio charakteristika | D7: Preliminarus įrenginių kiekis per 36 mėn. vnt. | E7: Paslaugos rūšis* | F7: Preliminarus paslaugos teikimo kiekis (vnt.) per 36 mėn. | G7: Įkainis, Eur be PVM (už 1 vnt) | H7: Kaina, Eur be PVM (6*7)
A8: 1 | B8: 2 | C8: 3 | D8: 4 | E8: 5 | F8: 6 | G8: 7 | H8: 8
A9: LG Cargo traukinių valdymo skyriaus Kauno grupė, A. Juozapavičiaus pr. 114L, Kaunas
A10: 1. | B10: Vandens šildymo katilas Vitoplex 100 SX-140 | C10: 1,4 MW | D10: 1 | E10: VKP | F10: 3 | G10: 52 | H10: =SUM(F10*G10) -> 156
E11: VA | F11: 1 | G11: 56 | H11: =SUM(F11*G11) -> 56
E12: HB | F12: 1 | G12: 50 | H12: =SUM(F12*G12) -> 50
A13: LG Cargo traukinių valdymo skyriaus Radviliškio grupė, Laisvės al. 17, Radviliškis
A14: 2. | B14: Garo katilas FW-16 | C14: 1,5 MW | D14: 2 | E14: VKP | F14: 6 | G14: 52 | H14: =SUM(F14*G14) -> 312
E15: VA | F15: 2 | G15: 56 | H15: =SUM(F15*G15) -> 112
E16: HB | F16: 2 | G16: 50 | H16: 100
A17: 3. | B17: Garo katilas FW-16 | C17: 3,0 MW | D17: 1 | E17: VKP | F17: 3 | G17: 52 | H17: 156
E18: VA | F18: 1 | G18: 56 | H18: 56
E19: HB | F19: 1 | G19: 50 | H19: 50
A20: 4. | B20: Garo katilas FW-25 | C20: 1,5 MW | D20: 1 | E20: VKP | F20: 3 | G20: 52 | H20: 156
E21: VA | F21: 1 | G21: 56 | H21: 56
E22: HB | F22: 1 | G22: 50 | H22: 50
A23: DI Kauno regiono Kauno st., M. K. Čiurlionio g. 16, Kaunas
A24: 5. | B24: Oro rinktuvas | C24: P-8,0 bar., V-10 m³ | D24: 1 | E24: VIP | F24: 1 | G24: 55 | H24: 55
A25: 6. | B25: Oro rinktuvas | C25: P-8,0 bar., V-2,0 m³ | D25: 2 | E25: VIP | F25: 2 | G25: 55 | H25: 110
A26: DI Kauno regiono Palemono st. Palemono g. 78 c, Palemonas
A27: 7. | B27: Oro rinktuvas | C27: P-8,0 bar., V-2,0 m³ | D27: 1 | E27: VIP | F27: 2 | G27: 55 | H27: 110
E28: HB | F28: 1 | G28: 48 | H28: 48
E29: VA | F29: 1 | G29: 58 | H29: 58
A30: 8. | B30: Oro rinktuvas | C30: P-8,0 bar., V-6,3 m³ | D30: 3 | E30: VIP | F30: 6 | G30: 55 | H30: 330
E31: VA | F31: 3 | G31: 58 | H31: 174
E32: HB | F32: 3 | G32: 48 | H32: 144
A33: DI Kauno regiono Gaižiūnų st. Geležinkelio g. 1, Gaižiūnai Jonavos raj.
A34: 9. | B34: Oro rinktuvas | C34: P-8,0 bar., V-10,0 m³ | D34: 1 | E34: VIP | F34: 1 | G34: 55 | H34: 55
A35: 10. | B35: Oro rinktuvas | C35: P-8,0 bar., V-2,0 m³ | D35: 2 | E35: VIP | F35: 2 | G35: 55 | H35: 110
A36: DI Kauno regiono Jonavos st. Šilų g. 9, Jonava
A37: 11. | B37: Oro rinktuvas | C37: P-8,0 bar., V-6,3 m³ | D37: 2 | E37: VIP | F37: 2 | G37: 55 | H37: 110
A38: DI Kauno regiono Kaišiadorių st. Jonavos g. 2 a, Kaišiadorys
A39: 12. | B39: Oro rinktuvas | C39: P-8,0 bar., V-2,0 m³ | D39: 2 | E39: VIP | F39: 2 | G39: 55 | H39: 110
A40: 13. | B40: Oro rinktuvas | C40: P-8,0 bar., V-6,3 m³ | D40: 2 | E40: VIP | F40: 2 | G40: 55 | H40: 110
A41: DI Kauno regiono Kėdainių st. Dariaus ir Girėno 19 a, Kėdainiai
A42: 14. | B42: Oro rinktuvas | C42: P-8,0 bar., V-10,0 m³ | D42: 3 | E42: VIP | F42: 3 | G42: 55 | H42: 165
A43: DI Kauno regiono Žaslių st., Guronys Stoties g. 6
A44: 15. | B44: Oro rinktuvas | C44: P-8,0 bar., V-2,0 m³ | D44: 2 | E44: VIP | F44: 2 | G44: 55 | H44: 110
A45: DI Kauno regiono Dotnuvos st. Stoties g. 2 c, Dotnuva
A46: 16. | B46: Oro rinktuvas | C46: P-8,0 bar., V-6,3 m³ | D46: 2 | E46: VIP | F46: 2 | G46: 55 | H46: 110
A47: Bendra kaina Eur be PVM | H47: 3219
A48: 21 proc PVM | H48: 675.99
A49: Bendra kaina Eur su PVM | H49: 3894.99
A51: *Paaiškinimai:
A52: VIP - veikiančio indo patikra, VA - vidaus ir išorės apžiūra, PTP - pilnutinė techninė patikra, DTP - dalinė techninė patikra, HB - hidrauliniai bandymai, VKP - veikiančio katilo patikra, VTA - veikiančios talpyklos apžiūra, TPA-tarpinė periodinė apžiūra, SB-sandarumo bandymas

Sheet 2 p.o.d.
A1: Potencialiai pavojingų įrenginių patikros paslaugų pirkimo
A2: techninės specifikacijos 1 priedas
A4: II pirkimo objekto dalis.
A5: 2 grupė - slėginiai indai ir jų įranga
A7: Eil. Nr. | B7: Pavadinimas | C7: Įrenginio charakteristika | D7: Preliminarus įrenginių kiekis per 36 mėn. vnt. | E7: Paslaugos rūšis* | F7: Preliminarus paslaugos teikimo kiekis (vnt.) per 36 mėn. | G7: Įkainis, Eur be PVM (už 1 vnt) | H7: Kaina, Eur be PVM (6*7)
A8: 1 | B8: 2 | C8: 3 | D8: 4 | E8: 5 | F8: 6 | G8: 7 | H8: 8
A9: LG Keleiviams, Iešmininkų g. 17A, Vilnius
A10: 1. | B10: Oro rinktuvas | C10: P-8,0 bar., V-10 m³ | D10: 1 | E10: VIP | F10: 2 | G10: 55 | H10: =SUM(F10*G10) -> 110
E11: VA | F11: 1 | G11: 58 | H11: =SUM(F11*G11) -> 58
A12: LG Keleiviams, Švitrigailos g. 39A, Vilnius
A13: 2. | B13: Oro rinktuvas | C13: P-8,0 bar., V-10 m³ | D13: 1 | E13: VIP | F13: 2 | G13: 55 | H13: =SUM(F13*G13) -> 110
E14: VA | F14: 1 | G14: 58 | H14: =SUM(F14*G14) -> 58
A15: LG Keleiviams, Pelesos g. 10, Vilnius
A16: 3. | B16: Oro rinktuvas | C16: P-8,0 bar., V-10 m³ | D16: 1 | E16: VIP | F16: 1 | G16: 55 | H16: =SUM(F16*G16) -> 55
E17: VA | F17: 1 | G17: 58 | H17: =SUM(F17*G17) -> 58
A18: 4. | B18: Oro rinktuvas | C18: P-8,0 bar., V-10 m³ | D18: 1 | E18: VIP | F18: 2 | G18: 55 | H18: =SUM(F18*G18) -> 110
E19: VA | F19: 1 | G19: 58 | H19: =SUM(F19*G19) -> 58
A20: LG Keleiviams, Iešmininkų g. 17A, Vilnius
A21: 5 | B21: Oro rinktuvas | C21: P-8,0 bar., V-10 m³ | D21: 1 | E21: VIP | F21: 1 | G21: 55 | H21: =SUM(F21*G21) -> 55
E22: VA | F22: 1 | G22: 58 | H22: =SUM(F22*G22) -> 58
A23: 6. | B23: Oro rinktuvas | C23: P-8,0 bar., V-3,0 m³ | D23: 1 | E23: VIP | F23: 2 | G23: 55 | H23: 110
E24: VA | F24: 1 | G24: 58 | H24: 58
A25: LG Cargo Traukinių valdymo skyriaus Vilniaus grupė, Terminalo g. 8, Vilnius
A26: 7 | B26: Oro rinktuvas | C26: P-8,0 bar., V-6,3 m³ | D26: 1 | E26: VIP | F26: 2 | G26: 55 | H26: 110
E27: VA | F27: 1 | G27: 58 | H27: 58
A28: LG Cargo Traukinių parengimo skyriaus Vilniaus grupė, Terminalo g. 8, Vilnius
A29: 8 | B29: Oro rinktuvas | C29: P-8,0 bar., V-6,3 m³ | D29: 3 | E29: VIP | F29: 6 | G29: 55 | H29: 330
E30: VA | F30: 3 | G30: 58 | H30: 174
A31: LG Cargo Traukinių valdymo skyriaus Kauno grupė, A. Juozapavičiaus pr. 114L, Kaunas
A32: 9 | B32: Oro rinktuvas | C32: P-8,0 bar., V-6,3 m³ | D32: 1 | E32: VIP | F32: 2 | G32: 55 | H32: 110
E33: VA | F33: 1 | G33: 58 | H33: 58
C34: P-8,0 bar., V-10 m³ | D34: 1 | E34: VIP | F34: 2 | G34: 55 | H34: 110
E35: VA | F35: 1 | G35: 58 | H35: 58
C36: P-8,0 bar., V-10 m³ | D36: 1 | E36: VIP | F36: 2 | G36: 55 | H36: 110
E37: VA | F37: 1 | G37: 58 | H37: 58
C38: P-8,0 bar., V-6,0 m³ | D38: 1 | E38: VIP | F38: 2 | G38: 55 | H38: 110
E39: VA | F39: 1 | G39: 58 | H39: 58
A40: LG Cargo traukinių valdymo skyriaus Radviliškio grupė, Laisvės al. 17, Radviliškis
A41: 10. | B41: Oro rinktuvas | C41: P-8,0 bar., V-10 m³ | D41: 1 | E41: VIP | F41: 2 | G41: 55 | H41: 110
E42: VA | F42: 1 | G42: 58 | H42: 58
A43: Bendra kaina Eur be PVM | H43: 2410
A44: 21 proc PVM | H44: 506.1
A45: Bendra kaina Eur su PVM | H45: 2916.1
A47: *Paaiškinimai:
A48: VIP - veikiančio indo patikra, VA - vidaus ir išorės apžiūra, PTP - pilnutinė techninė patikra, DTP - dalinė techninė patikra, HB - hidrauliniai bandymai, VKP - veikiančio katilo patikra, VTA - veikiančios talpyklos apžiūra, TPA-tarpinė periodinė apžiūra, SB-sandarumo bandymas

Sheet 3 p.o.d.
A1: Potencialiai pavojingų įrenginių patikros paslaugų pirkimo
A2: techninės specifikacijos 1 priedas
A4: III pirkimo objekto dalis.
A5: 4 grupė - pavojingų medžiagų talpyklos ir jų įranga
A7: Eil. Nr. | B7: Pavadinimas | C7: Įrenginio charakteris-tika | D7: Preliminarus įrenginių kiekis per 36 mėn. vnt. | E7: Paslaugos rūšis* | F7: Preliminarus paslaugos teikimo kiekis (vnt.) per 36 mėn. | G7: Įkainis, Eur be PVM (už 1 vnt) | H7: Kaina, Eur be PVM (6*7)
A8: 1 | B8: 2 | C8: 3 | D8: 4 | E8: 5 | F8: 6 | G8: 7 | H8: 8
A9: TVPC Vilniaus kuro terminalas, Švitrigailos g. 39A, Vilnius
A10: 1. | B10: Požeminė šviesių NP talpykla | C10: 83 m³ | D10: 6 | E10: VTA | F10: 6 | G10: 70 | H10: =SUM(F10*G10) -> 420
A11: 2. | B11: Požeminė šviesių NP talpykla | C11: 83 m³ | D11: 6 | E11: VA | F11: 6 | G11: 74 | H11: =SUM(F11*G11) -> 444
A12: 3. | B12: Požeminė šviesių NP talpykla | C12: 70 m³ | D12: 1 | E12: VTA | F12: 1 | G12: 70 | H12: 70
A13: 4. | B13: Požeminė šviesių NP talpykla | C13: 70 m³ | D13: 1 | E13: VA | F13: 1 | G13: 74 | H13: 74
A14: 5. | B14: Požeminė dvisienė skysto kuro talpykla (LG Keleivims) | C14: 60 m³ | D14: 1 | E14: VTA | F14: 1 | G14: 70 | H14: 70
D15: 1 | E15: VA | F15: 1 | G15: 74 | H15: 74
A16: TVPC Vaidotų kuro terminalas Terminalo g. 8, Vilnius
A17: 6. | B17: Vertikali cilindrinė talpykla | C17: 1000 m³ | D17: 2 | E17: VTA | F17: 2 | G17: 110 | H17: 220
A18: 7. | B18: Vertikali cilindrinė talpykla | C18: 3000 m³ | D18: 2 | E18: VTA | F18: 2 | G18: 115 | H18: 230
D19: 2 | E19: VA | F19: 2 | G19: 125 | H19: 250
A20: 8. | B20: Priedų talpykla talpykla | C20: 180 m³ | D20: 1 | E20: VTA | F20: 1 | G20: 95 | H20: 95
D21: 1 | E21: VA | F21: 1 | G21: 100 | H21: 100
A22: 9. | B22: Požeminė šviesių NP talpykla | C22: 70 m3 | D22: 1 | E22: VTA | F22: 1 | G22: 70 | H22: 70
A23: 10. | B23: Požeminė dvisienė naftos produktų talpykla (DK Vilniaus grupė) | C23: 60 m³ | D23: 1 | E23: VTA | F23: 2 | G23: 70 | H23: 140
D24: 1 | E24: VA | F24: 1 | G24: 74 | H24: 74
A25: TVPC Kauno kuro terminalas, A. Juozapavičiaus pr. 118F, Kaunas
A26: 11. | B26: Požeminė šviesių NP talpykla | C26: 80 m3 | D26: 5 | E26: VTA | F26: 5 | G26: 70 | H26: 350
D27: 5 | E27: VA | F27: 5 | G27: 74 | H27: 370
A28: TVPC Kauno kuro terminalas, Kražantės 36, Kaunas (Palemonas)
A29: 12. | B29: Talpykla | C29: 2,5 m³ | D29: 1 | E29: VTA | F29: 1 | G29: 54 | H29: 54
D30: 1 | E30: VA | F30: 1 | G30: 70 | H30: 70
A31: TVPC Kauno kuro terminalas, Topolių 1, Šeštokai (Šeštokai)
A32: 13. | B32: Talpykla | C32: 2,5 m³ | D32: 1 | E32: VTA | F32: 1 | G32: 54 | H32: 54
D33: 1 | E33: VA | F33: 1 | G33: 70 | H33: 70
A34: TVPC Radviliškio kuro terminalas , S.Daukanto g. 63, Radviliškis
A35: 14. | B35: Antžeminė vertikali cilindrinė talpykla | C35: 1600 m3 | D35: 2 | E35: VTA | F35: 2 | G35: 115 | H35: 230
A36: 15. | B36: Antžeminė vertikali cilindrinė talpykla | C36: 700 m3 | D36: 1 | E36: VTA | F36: 1 | G36: 110 | H36: 110
A37: 16 | B37: Požeminė šviesių NP talpykla | C37: 70 m3 | D37: 1 | E37: VTA | F37: 1 | G37: 70 | H37: 70
A38: 17 | B38: Antžeminė horizontali cilindrinė talpykla | C38: 100 m3 | D38: 3 | E38: VTA | F38: 3 | G38: 70 | H38: 210
A39: TVPC Bugenių plovykla Geležinkelio g. 15, Dapšių k, Mažeikių r.
A40: 18 | B40: Antžeminė vertikali cilindrinė talpykla | C40: 700 m3 | D40: 1 | E40: VTA | F40: 1 | G40: 110 | H40: 110
E41: VTA | F41: 1 | G41: 110 | H41: 110
A42: 19 | B42: Antžeminė vertikali cilindrinė talpykla | C42: 700 m3 | D42: 1
A44: TVPC Klaipėdos kuro terminalas, Priestočio g. 25, Klaipėda
A45: 20 | B45: Antžeminė vertikali cilindrinė talpykla | C45: 2000 m3 | D45: 1 | E45: VTA | F45: 2 | G45: 115 | H45: =SUM(F45*G45) -> 230
A46: 21 | B46: Antžeminė vertikali cilindrinė talpykla | C46: 2000 m3 | D46: 1 | E46: VA | F46: 1 | G46: 115 | H46: 115
A47: 22 | B47: Antžeminė vertikali cilindrinė talpykla | C47: 2000 m3 | D47: 1 | E47: VTA | F47: 1 | G47: 115 | H47: 115
A48: 23 | B48: Antžeminė vertikali cilindrinė talpykla | C48: 2000 m3 | D48: 1 | E48: VA | F48: 1 | G48: 115 | H48: 115
A49: 24 | B49: Požeminė šviesių NP talpykla | C49: 120 m3 | D49: 1 | E49: VTA | F49: 2 | G49: 75 | H49: 150
A50: 25 | B50: Požeminė šviesių NP talpykla | C50: 120 m3 | D50: 1 | E50: VA | F50: 1 | G50: 84 | H50: 84
A51: 26 | B51: Požeminė šviesių NP talpykla | C51: 120 m3 | D51: 1 | E51: VTA | F51: 2 | G51: 75 | H51: 150
A52: 27 | B52: Požeminė šviesių NP talpykla | C52: 120 m3 | D52: 1 | E52: VA | F52: 1 | G52: 84 | H52: 84
A53: 28 | B53: Požeminė šviesių NP talpykla | C53: 40 m3 | D53: 1 | E53: VTA | F53: 2 | G53: 70 | H53: 140
A54: 29 | B54: Požeminė šviesių NP talpykla | C54: 40 m3 | D54: 1 | E54: VA | F54: 1 | G54: 74 | H54: 74
A55: TVPC Radviliškio kuro terminalo Bugenių sandėlis Geležinkelio g. 7, Dapšių k., Mažeikių r.
A56: 30 | B56: Antžeminė horizontali NP talpykla | C56: 100 m3 | D56: 1 | E56: VTA | F56: 1 | G56: 70 | H56: 70
D57: 1 | E57: VA | F57: 0 | G57: 74 | H57: 0
A58: TVPC KNRG Transporto priemonių priežiūros pogrupis, A. Juozapavičiaus pr. 118
A59: 31 | B59: Autocisterna | C59: 7,5 m3 | D59: 1 | E59: VA | F59: 1 | G59: 150 | H59: 150
E60: HB | F60: 1 | G60: 75 | H60: 75
A61: TVPC ŠRG Transporto priemonių priežiūros pogrupis Dubijos g. 26, Šiauliai
A62: 32 | B62: Autocisterna ATZ 10 | C62: 10 m3 | D62: 1 | E62: TPA | F62: 1 | G62: 150 | H62: 150
E63: SB | F63: 1 | G63: 78 | H63: 78
A64: 33 | B64: Autocisterna Stokota | C64: 10,5 m3 | D64: 1 | E64: TPA | F64: 1 | G64: 150 | H64: 150
E65: SB | F65: 1 | G65: 78 | H65: 78
A66: Bendra kaina Eur be PVM | H66: 6147
A67: 21 proc PVM | H67: 1290.87
A68: Bendra kaina Eur su PVM | H68: 7437.87
A70: *Paaiškinimai:
A71: VIP - veikiančio indo patikra, VA - vidaus ir išorės apžiūra, PTP - pilnutinė techninė patikra, DTP - dalinė techninė patikra, HB - hidrauliniai bandymai, VKP - veikiančio katilo patikra, VTA - veikiančios talpyklos apžiūra, TPA-tarpinė periodinė apžiūra, SB-sandarumo bandymas

Sheet 4 p.o.d.
A1: Potencialiai pavojingų įrenginių patikros paslaugų pirkimo
A2: techninės specifikacijos 1 priedas
A4: IV pirkimo objekto dalis
A5: 5 grupė - liftai ir jų įranga
A7: Eil. Nr. | B7: Pavadinimas | C7: Įrenginio charakteristika | D7: Preliminarus įrenginių kiekis (vnt.) per 36 mėn. vnt. | E7: Paslaugos rūšis* | F7: Preliminarus paslaugos teikimo kiekis per 36 mėn. | G7: Įkainis, Eur be PVM (už 1 vnt) | H7: Kaina, Eur be PVM (6*7)
A8: 1 | B8: 2 | C8: 3 | D8: 4 | E8: 5 | F8: 6 | G8: 7 | H8: 8
A9: 1. | B9: Keleivinis liftas | C9: 630 kg | D9: 1 | E9: DTP | F9: 2 | G9: 50 | H9: =F9*G9 -> 100
E10: PTP | F10: 1 | G10: 60 | H10: =F10*G10 -> 60
A11: 2. | B11: Keltuvas žmonėms kelti | C11: 400 kg | D11: 1 | E11: DTP | F11: 1 | G11: 50 | H11: 50
E12: PTP | F12: 1 | G12: 50 | H12: 50
A13: 3. | B13: Keltuvas žmonėms kelti | C13: 400 kg | D13: 1 | E13: DTP | F13: 1 | G13: 50 | H13: 50
E14: PTP | F14: 1 | G14: 50 | H14: 50
A15: 4. | B15: Keltuvas žmonėms kelti | C15: 400 kg | D15: 1 | E15: DTP | F15: 2 | G15: 50 | H15: 100
E16: PTP | F16: 3 | G16: 50 | H16: 150
A17: 5. | B17: Keltuvas žmonėms kelti | C17: 250 kg | D17: 1 | E17: DTP | F17: 1 | G17: 50 | H17: 50
E18: PTP | F18: 1 | G18: 50 | H18: 50
A19: Bendra kaina Eur be PVM | H19: =SUM(H9:H18) -> 710
A20: 21 proc PVM | H20: =H19*0.21 -> 149.1
A21: Bendra kaina Eur su PVM | H21: =H19+H20 -> 859.1
A23: *Paaiškinimai:
A24: VIP - veikiančio indo patikra, VA - vidaus ir išorės apžiūra, PTP - pilnutinė techninė patikra, DTP - dalinė techninė patikra, HB - hidrauliniai bandymai, VKP - veikiančio katilo patikra, VTA - veikiančios talpyklos apžiūra, TPA-tarpinė periodinė apžiūra, SB-sandarumo bandymas

Sheet 5 p.o.d.
A1: Potencialiai pavojingų įrenginių patikros paslaugų pirkimo
A2: techninės specifikacijos 1 priedas
A4: V pirkimo objekto dalis.
A5: 8 grupė - kėlimo įrenginiai ir jų įranga
A7: Eil. Nr. | B7: Pavadinimas | C7: Įrenginio charakteristika | D7: Preliminarus įrenginių kiekis per 36 mėn. vnt. | E7: Paslaugos rūšis* | F7: Preliminarus paslaugos teikimo kiekis (vnt.) per 36 mėn. | G7: Įkainis, Eur be PVM (už 1 vnt) | H7: Kaina, Eur be PVM (6*7)
A9: LG Keleiviams, Iešmininkų g. 17A, Pamonės g. 78, Vilnius
A10: 1. | B10: Tiltinis kranas | C10: 5,0 t | D10: 1 | E10: DTP | F10: 2 | G10: 53 | H10: 106
E11: PTP | F11: 1 | G11: 58 | H11: 58
A12: 2. | B12: Ožinis kranas | C12: 5,0 t | D12: 1 | E12: DTP | F12: 2 | G12: 53 | H12: 106
E13: PTP | F13: 1 | G13: 58 | H13: 58
A14: 3. | B14: Tiltinis kranas | C14: 10,0 t | D14: 1 | E14: DTP | F14: 2 | G14: 53 | H14: 106
E15: PTP | F15: 1 | G15: 58 | H15: 58
A16: 4. | B16: Tiltinis kranas | C16: 10,0 t | D16: 1 | E16: DTP | F16: 2 | G16: 53 | H16: 106
E17: PTP | F17: 1 | G17: 58 | H17: 58
A18: 5. | B18: Tiltinis kranas | C18: 10,0 t | D18: 1 | E18: DTP | F18: 2 | G18: 53 | H18: 106
E19: PTP | F19: 1 | G19: 58 | H19: 58
A20: 6. | B20: Automobilinis kranas | C20: 5,5 t | D20: 1 | E20: DTP | F20: 2 | G20: 53 | H20: 106
E21: PTP | F21: 1 | G21: 58 | H21: 58
A22: 7. | B22: Mobilios platformos | C22: 350,0 kg | D22: 5 | E22: DTP | F22: 10 | G22: 54 | H22: 540
E23: PTP | F23: 5 | G23: 59 | H23: 295
A24: LG Cargo Traukinių valdymo skyriaus Kauno grupė, A. Juozapavičiaus pr. 114L, Kaunas
A25: 8. | B25: Savaeigė kėlimo platforma | C25: 250 kg | D25: 1 | E25: DTP | F25: 2 | G25: 54 | H25: 108
E26: PTP | F26: 1 | G26: 59 | H26: 59
B27: Tiltinis kranas MKT-6000 | C27: 10 t | D27: 1 | E27: DTP | F27: 2 | G27: 53 | H27: 106
E28: PTP | F28: 1 | G28: 58 | H28: 58
B29: Ožinis kranas KKT-5 | C29: 5 t | D29: 1 | E29: DTP | F29: 2 | G29: 53 | H29: 106
E30: PTP | F30: 1 | G30: 58 | H30: 58
A31: LG Cargo Traukinių parengimo skyriaus Klaipėdos grupė, Klevų g. 7A, Klaipėda
A32: 9. | B32: Ožinis konteinerinis kranas | C32: 20,0 t | D32: 1 | E32: DTP | F32: 2 | G32: 64 | H32: 128
E33: PTP | F33: 1 | G33: 69 | H33: 69
A34: LG Cargo Traukinių parengtumo skyriaus Kauno grupė, Kražantės g. 36, Kaunas, Topolių g. 1 Šeštokai
A35: 10. | B35: Ožinis kranas KKT-10 | C35: 10 t | D35: 1 | E35: DTP | F35: 2 | G35: 53 | H35: 106
E36: PTP | F36: 1 | G36: 58 | H36: 58
B37: Ožinis kranas KKT-20 | C37: 20 t | D37: 1 | E37: DTP | F37: 2 | G37: 64 | H37: 128
A38: 11. | E38: PTP | F38: 1 | G38: 69 | H38: 69
B39: Ožinis kranas KKT-12,5 | C39: 12,5 t | D39: 1 | E39: DTP | F39: 2 | G39: 54 | H39: 108
A40: 12. | E40: PTP | F40: 1 | G40: 59 | H40: 59
B41: Ožinis kranas KKT-20 | C41: 20 t | D41: 1 | E41: DTP | F41: 2 | G41: 64 | H41: 128
A42: 13. | E42: PTP | F42: 1 | G42: 69 | H42: 69
B43: Ožinis kranas KKT-32 | C43: 32 t | D43: 1 | E43: DTP | F43: 2 | G43: 84 | H43: 168
A44: 14. | E44: PTP | F44: 1 | G44: 89 | H44: 89
B45: Ožinis kranas KKT-42 | C45: 42 t | D45: 1 | E45: DTP | F45: 2 | G45: 84 | H45: 168
A46: 15. | E46: PTP | F46: 1 | G46: 89 | H46: 89
A47: 16. | B47: Automobiliniai kranai | C47: 12,5 t | D47: 1 | E47: DTP | F47: 2 | G47: 54 | H47: 108
E48: PTP | F48: 1 | G48: 59 | H48: 59
A49: LG Cargo Traukinių parengimo skyriaus Vilniaus grupė, Panerių g. 56, Vilnius
A50: 17. | B50: Ožinis kranas | C50: 5,0 t | D50: 1 | E50: DTP | F50: 2 | G50: 53 | H50: 106
E51: PTP | F51: 1 | G51: 58 | H51: 58
A52: 18. | B52: Ožinis kranas | C52: 5,0 t | D52: 1 | E52: DTP | F52: 2 | G52: 53 | H52: 106
E53: PTP | F53: 1 | G53: 58 | H53: 58
A54: 19. | B54: Ožinis kranas | C54: 5,0 t | D54: 1 | E54: DTP | F54: 2 | G54: 53 | H54: 106
E55: PTP | F55: 1 | G55: 58 | H55: 58
A56: 20. | B56: Ožinis kranas | C56: 10,0t | D56: 1 | E56: DTP | F56: 2 | G56: 53 | H56: 106
E57: PTP | F57: 1 | G57: 58 | H57: 58
A58: 21. | B58: Ožinis kranas | C58: 10,0 t | D58: 1 | E58: DTP | F58: 2 | G58: 53 | H58: 106
E59: PTP | F59: 1 | G59: 58 | H59: 58
A60: LG Cargo Traukinių parengimo skyriaus Vilniaus grupė, Vilijos g. 2, Vilnius
A61: 22. | B61: Ožinis kranas | C61: 10,0 t | D61: 1 | E61: DTP | F61: 2 | G61: 53 | H61: 106
E62: PTP | F62: 1 | G62: 58 | H62: 58
A63: 23. | B63: Ožinis kranas | C63: 12,5 t | D63: 1 | E63: DTP | F63: 2 | G63: 54 | H63: 108
E64: PTP | F64: 1 | G64: 59 | H64: 59
A65: 24. | B65: Ožinis kranas | C65: 10,0 t | D65: 1 | E65: DTP | F65: 2 | G65: 53 | H65: 106
E66: PTP | F66: 1 | G66: 58 | H66: 58
A67: 25. | B67: Ožinis kranas | C67: 10,0 t | D67: 1 | E67: DTP | F67: 2 | G67: 53 | H67: 106
E68: PTP | F68: 1 | G68: 58 | H68: 58
A69: 26. | B69: Ožinis konteinerinis kranas | C69: 32,0 t. | D69: 1 | E69: DTP | F69: 2 | G69: 84 | H69: 168
E70: PTP | F70: 1 | G70: 89 | H70: 89
A71: 27. | B71: Automobilinis strėlinis kranas | C71: 14,0 t. | D71: 1 | E71: DTP | F71: 2 | G71: 54 | H71: 108
E72: PTP | F72: 1 | G72: 59 | H72: 59
A73: 28. | B73: Automobilinis bokštelis | C73: 300,0 kg. | D73: 1 | E73: DTP | F73: 2 | G73: 54 | H73: 108
E74: PTP | F74: 1 | G74: 59 | H74: 59
A75: TVPC KNRG Transporto priemonių priežiūros pogrupis, A. Juozapavičiaus pr. 118, Kaunas
A76: 29. | B76: Hidraulinis strėlinis krovimo kranas Epsilom M120Z84TI | C76: 3580kg | D76: 1 | E76: DTP | F76: 2 | G76: 53 | H76: 106
E77: PTP | F77: 1 | G77: 58 | H77: 58
A78: TVPC ŠRG Transporto priemonių priežiūros pogrupis Dubijos g. 26 Šiauliai
A79: 30. | B79: Automobilinis bokštelis VS-18MS (žmonėms kelti) | C79: 250kg | D79: 1 | E79: DTP | F79: 2 | G79: 54 | H79: 108
E80: PTP | F80: 1 | G80: 59 | H80: 59
A81: 31. | B81: Hidraulinis strėlinis krovimo kranas Epsilom M120Z84TI | C81: 3580kg | D81: 1 | E81: DTP | F81: 2 | G81: 53 | H81: 106
E82: PTP | F82: 1 | G82: 58 | H82: 58
A83: 32. | B83: Hidraulinis manipuliatorius MAN TGS 26.400 | C83: 5850kg | D83: 1 | E83: DTP | F83: 2 | G83: 53 | H83: 106
E84: PTP | F84: 1 | G84: 58 | H84: 58
A85: 33. | B85: Hidraulinis kranas/mobili kėlimo platforma Hiab 060 | C85: 3000kg | D85: 1 | E85: DTP | F85: 2 | G85: 54 | H85: 108
E86: PTP | F86: 1 | G86: 59 | H86: 59
A87: TVPC ŠRG Nekilnojamo turto priežiūros pogrupis Dubijos g. 26 Šiauliai
A88: 34. | B88: Vertikalus krautuvas žmonėms kelti PH1 1300 | C88: 135kg | D88: 1 | E88: DTP | F88: 2 | G88: 54 | H88: 108
E89: PTP | F89: 1 | G89: 59 | H89: 59
A90: TVPC Bugenių riedmenų plovykla Geležinkelio g. 15, Dapšių k, Mažeikių r.
A91: 35. | B91: Alkūninis keltuvas Nifty 140HAC | C91: 225kg | D91: 1 | E91: DTP | F91: 2 | G91: 54 | H91: 108
E92: PTP | F92: 1 | G92: 59 | H92: 59
A93: 36. | B93: Pneumatinė judanti aikštelė | C93: 150kg | D93: 2 | E93: DTP | F93: 4 | G93: 54 | H93: 216
B94: WALL-MANN1000/100 | E94: PTP | F94: 2 | G94: 59 | H94: 118
A95: LG Cargo traukinių valdymo skyriaus Radviliškio grupė, Laisvės al. 17, Radviliškis
A96: 37. | B96: Geležinkelio kranas KŽDE-16 | C96: 16t. | D96: 1 | E96: DTP | F96: 2 | G96: 54 | H96: 108
E97: PTP | F97: 1 | G97: 59 | H97: 59
A98: DI Kauno regiono, A. Juozapavičiaus g. 118, Kaunas
A99: 38. | B99: Ožinio tipo kranai | C99: 10,0 t. | D99: 2 | E99: DTP | F99: 3 | G99: 53 | H99: 159
A100: DI Kauno regiono, Šilų g. 9, Jonava
A101: 39. | B101: Tiltiniai ir ožinio tipo kranai | C101: 5,0 t. | D101: 2 | E101: DTP | F101: 2 | G101: 53 | H101: 106
A102: DI Kauno regiono, Šilų g. 9, Jonava
A103: 40. | B103: Hidraulinis strėlinis pasukamas kranas "Palfinger" | C103: 6,0 t. | D103: 3 | E103: DTP | F103: 6 | G103: 53 | H103: 318
A104: DI Kauno regiono, A. Juozapavičiaus g. 118, Kaunas
A105: 41. | B105: Hidraulinis strėlinis pasukamas kranas "Palfinger" | C105: 6,0 t. | D105: 4 | E105: DTP | F105: 7 | G105: 53 | H105: 371
E106: PTP | F106: 4 | G106: 58 | H106: 232
A107: 42. | B107: Alkuninis keltuvas Nifty 120T | C107: 200 kg | D107: 2 | E107: DTP | F107: 4 | G107: 54 | H107: 216
E108: PTP | F108: 2 | G108: 59 | H108: 118
A109: 43. | B109: Savaeigis hidraulinis keltuvas žmonėms kelti VCP1P | C109: 265 kg | D109: 2 | E109: DTP | F109: 2 | G109: 54 | H109: 108
E110: PTP | F110: 1 | G110: 59 | H110: 59
A111: 44. | B111: Hidraulinis strėlinis krovimo kranas Epsilom M120Z84TI | C111: 3580 kg | D111: 3 | E111: DTP | F111: 7 | G111: 53 | H111: 371
E112: PTP | F112: 2 | G112: 58 | H112: 116
A113: DI Kauno regiono, Geležinkelio g. 3A, Kaunas
A114: 45. | B114: Geležinkelio kranas EDK-500/1 | C114: 80 t. | D114: 1 | E114: DTP | F114: 1 | G114: 94 | H114: 94
E115: PTP | F115: 1 | G115: 109 | H115: 109
A116: Bendra kaina Eur be PVM | H116: =SUM(H10:H115) -> 10025
A117: 21 proc PVM | H117: 2105.25
A118: Bendra kaina Eur su PVM | H118: 12130.25
A120: *Paaiškinimai:
A121: VIP - veikiančio indo patikra, VA - vidaus ir išorės apžiūra, PTP - pilnutinė techninė patikra, DTP - dalinė techninė patikra, HB - hidrauliniai bandymai, VKP - veikiančio katilo patikra, VTA - veikiančios talpyklos apžiūra, TPA-tarpinė periodinė apžiūra, SB-sandarumo bandymas

Sheet Subtiekėjai
A2: Subtiekėjai ir jiems perduodama vykdyti pirkimo sutarties dalis:
A4: Eil. Nr | C4: Subtiekėjo pavadinimas | F4: Pirkimo objekto dalies, perduodamos vykdyti subtiekėjui, aprašymas | I4: Procentas perduodamos vykdyti pirkimo objekto dalies nuo pasiūlymo kainos su PVM (pildoma, jei ūkio subjektas vykdys sutartį)
A11: Kartu su pasiūlymu pateikiami šie dokumentai:
A13: Eil.Nr. | B13: Dokumentas | E13: Ar dokumentas konfidencialus? (Taip/Ne) | G13: Prisegtos bylos (failo) pavadinimas | I13: Paaiškinimas, kokia konkreti informacija dokumente yra konfidenciali
A20: Pasirašydamas šį pasiūlymą, tvirtintu, kad: 1) pasiūlymo dokumentuose pateikti duomenys yra tikri; 2) siūlomas Pirkimo objektas visiškai atitinka Pirkimo dokumentuose nustatytus reikalavimus; 3) sutinku su visomis Pirkimo dokumentuose nustatytomis sąlygomis; 4) pasiūlymas galioja iki termino, nustatyto Pirkimo dokumentuose.
A25: Tiekėjo arba jo įgalioto asmens pareigų pavadinimas | E25: Technikos kontrolės tarnybos direktorius
A28: Pasirašančio asmens vardas ir pavardė | E28: Raimedas Burba
A95: 11276 2019-10-29 11:41:35
